{"text_format":"3","workbook":"xlsx","n_sheets":2,"sheets":["Rozpoczęcie","Budżet ślubny"],"read":"whole","date_system":"1900"}

{"sheet":"Rozpoczęcie","index":0,"n_rows":7,"n_cols":2,"rows_kept":7}
[null,"INFORMACJE O TYM SZABLONIE"]
[null,"Ten szablon umożliwia rejestrowanie rzeczywistych wydatków na różne rzeczy związane ze ślubem i śledzić je na podstawie kwot ujętych w budżecie."]
[null,"Wprowadź wydatki na strój, dekoracje, prezenty, kwiaty, muzykę, fotografie, przyjęcie weselne, papeterię, transport oraz inne pozycje w odpowiednich tabelach."]
[null,"Łączny szacowany koszt i suma wydatków rzeczywistych są obliczane automatycznie."]
[null,"Notatka: "]
[null,"W kolumnie A w arkuszu BUDŻET ŚLUBNY podano dodatkowe instrukcje. Ten tekst celowo został ukryty. Aby usunąć tekst, zaznacz kolumnę A, a następnie naciśnij klawisz DELETE. Aby odkryć tekst, zaznacz kolumnę A, a następnie zmień kolor czcionki."]
[null,"Aby uzyskać więcej informacji o tabelach, w tabeli naciśnij klawisz SHIFT, a następnie F10, wybierz opcję TABELA, a następnie TEKST ALTERNATYWNY."]

{"sheet":"Budżet ślubny","index":1,"n_rows":93,"n_cols":4,"rows_kept":93,"merged":[[0,1,0,3],[2,1,2,3],[6,1,6,3],[15,1,15,3],[25,1,25,3],[34,1,34,3],[43,1,43,3],[50,1,50,3],[59,1,59,3],[68,1,68,3],[77,1,77,3],[85,1,85,3]]}
[null,"BUDŻET ŚLUBNY"]
[]
[null,"SUMA WYDATKÓW "]
[null,"Pozycja ","Szacowane","Rzeczywiste"]
[null,"Suma wydatków ",{"$f":"SUM(Strój[[#Totals],[Szacowane]],Dekoracje[[#Totals],[Szacowane]],Prezenty[[#Totals],[Szacowane]],Kwiaty[[#Totals],[Szacowane]],Muzyka[[#Totals],[Szacowane]],Fotografia[[#Totals],[Szacowane]],Wesele[[#Totals],[Szacowane]],Zaproszenia_i_artykuły_do_druku[[#Totals],[Szacowane]],Transport[[#Totals],[Szacowane]],Inne_wydatki[[#Totals],[Szacowane]])","v":0},{"$f":"SUM(Strój[[#Totals],[Rzeczywiste]],Dekoracje[[#Totals],[Rzeczywiste]],Prezenty[[#Totals],[Rzeczywiste]],Kwiaty[[#Totals],[Rzeczywiste]],Muzyka[[#Totals],[Rzeczywiste]],Fotografia[[#Totals],[Rzeczywiste]],Wesele[[#Totals],[Rzeczywiste]],Zaproszenia_i_artykuły_do_druku[[#Totals],[Rzeczywiste]],Transport[[#Totals],[Rzeczywiste]],Inne_wydatki[[#Totals],[Rzeczywiste]],)","v":0}]
[]
[null,"STRÓJ"]
[null,"Pozycja ","Szacowane","Rzeczywiste"]
[null,"Pierścionek zaręczynowy"]
[null,"Obrączki ślubne"]
[null,"Suknia ślubna"]
[null,"Welon/ozdoba włosów"]
[null,"Inne:"]
[null,"Strój łącznie",{"$f":"SUBTOTAL(109,Strój[Szacowane])","v":0},{"$f":"SUBTOTAL(109,Strój[Rzeczywiste])","v":0}]
[]
[null,"DEKORACJE"]
[null,"Pozycja ","Szacowane","Rzeczywiste"]
[null,"Kokardy do kościoła"]
[null,"Ozdoby stołowe (oprócz kwiatów)"]
[null,"Świece"]
[null,"Oświetlenie"]
[null,"Balony"]
[null,"Inne:"]
[null,"Dekoracje łącznie",{"$f":"SUBTOTAL(109,Dekoracje[Szacowane])","v":0},{"$f":"SUBTOTAL(109,Dekoracje[Rzeczywiste])","v":0}]
[]
[null,"PREZENTY"]
[null,"Pozycja ","Szacowane","Rzeczywiste"]
[null,"Druhny i drużbowie"]
[null,"Panna młoda i pan młody"]
[null,"Rodzice"]
[null,"Inni uczestnicy"]
[null,"Inne:"]
[null,"Prezenty łącznie",{"$f":"SUBTOTAL(109,Prezenty[Szacowane])","v":0},{"$f":"SUBTOTAL(109,Prezenty[Rzeczywiste])","v":0}]
[]
[null,"KWIATY"]
[null,"Pozycja ","Szacowane","Rzeczywiste"]
[null,"Bukiety"]
[null,"Kwiaty do butonierek"]
[null,"Bukieciki do sukienek"]
[null,"Ceremonia"]
[null,"Inne:"]
[null,"Kwiaty łącznie",{"$f":"SUBTOTAL(109,Kwiaty[Szacowane])","v":0},{"$f":"SUBTOTAL(109,Kwiaty[Rzeczywiste])","v":0}]
[]
[null,"MUZYKA"]
[null,"Pozycja ","Szacowane","Rzeczywiste"]
[null,"Muzycy na ślub"]
[null,"Zespół/DJ na wesele"]
[null,"Inne:"]
[null,"Muzyka łącznie",{"$f":"SUBTOTAL(109,Muzyka[Szacowane])","v":0},{"$f":"SUBTOTAL(109,Muzyka[Rzeczywiste])","v":0}]
[]
[null,"FOTOGRAFIA"]
[null,"Pozycja ","Szacowane","Rzeczywiste"]
[null,"Oficjalne"]
[null,"Nieoficjalne"]
[null,"Dodatkowe odbitki"]
[null,"Albumy fotograficzne"]
[null,"Inne:"]
[null,"Fotografie łącznie",{"$f":"SUBTOTAL(109,Fotografia[Szacowane])","v":0},{"$f":"SUBTOTAL(109,Fotografia[Rzeczywiste])","v":0}]
[]
[null,"WESELE "]
[null,"Pozycja ","Szacowane","Rzeczywiste"]
[null,"Opłata za salę"]
[null,"Stoły i krzesła"]
[null,"Jedzenie"]
[null,"Obrusy"]
[null,"Inne:"]
[null,"Łącznie przyjęcie weselne (z wyłączeniem muzyki i dekoracji)",{"$f":"SUBTOTAL(109,Wesele[Szacowane])","v":0},{"$f":"SUBTOTAL(109,Wesele[Rzeczywiste])","v":0}]
[]
[null,"PAPETERIA I DRUKOWANIE"]
[null,"Pozycja ","Szacowane","Rzeczywiste"]
[null,"Zaproszenia"]
[null,"Ogłoszenia"]
[null,"Kartki z podziękowaniami"]
[null,"Papeteria osobista"]
[null,"Inne:"]
[null,"Papeteria i drukowanie razem",{"$f":"SUBTOTAL(109,Zaproszenia_i_artykuły_do_druku[Szacowane])","v":0},{"$f":"SUBTOTAL(109,Zaproszenia_i_artykuły_do_druku[Rzeczywiste])","v":0}]
[]
[null,"TRANSPORT"]
[null,"Pozycja ","Szacowane","Rzeczywiste"]
[null,"Limuzyny"]
[null,"Parking"]
[null,"Taksówki"]
[null,"Inne:"]
[null,"Transport łącznie",{"$f":"SUBTOTAL(109,Transport[Szacowane])","v":0},{"$f":"SUBTOTAL(109,Transport[Rzeczywiste])","v":0}]
[]
[null,"INNE WYDATKI"]
[null,"Pozycja ","Szacowane","Rzeczywiste"]
[null,"Osoba udzielająca ślubu"]
[null,"Opłata za kościół/miejsce ślubu"]
[null,"Organizator ceremonii"]
[null,"Kolacja próbna"]
[null,"Inne:"]
[null,"Suma innych wydatków",{"$f":"SUBTOTAL(109,Inne_wydatki[Szacowane])","v":0},{"$f":"SUBTOTAL(109,Inne_wydatki[Rzeczywiste])","v":0}]